[Event "*** Titled Tuesday Blitz"]
[Site "Chess.com"]
[Date "2020.05.05"]
[Round "4"]
[White "Kildepiotr"]
[Black "vinniethepooh"]
[Result "0-1"]
[WhiteElo "2477"]
[BlackElo "2684"]
[TimeControl "180+1"]
[EndTime "10:41:46 PDT"]
[Termination "vinniethepooh won by resignation"]

1. Nf3 {[%clk 0:02:29.5]} 1... d5 {[%clk 0:02:59]} 2. g3 {[%clk 0:02:29.4]} 2...
c6 {[%clk 0:02:58.9]} 3. Bg2 {[%clk 0:02:29.6]} 3... Bg4 {[%clk 0:02:57.6]} 4.
O-O {[%clk 0:02:29.6]} 4... Nd7 {[%clk 0:02:57.4]} 5. d3 {[%clk 0:02:30.1]} 5...
Ngf6 {[%clk 0:02:57.1]} 6. Nbd2 {[%clk 0:02:30.6]} 6... e5 {[%clk 0:02:55.1]} 7.
e4 {[%clk 0:02:30.9]} 7... Be7 {[%clk 0:02:55.6]} 8. h3 {[%clk 0:02:30.5]} 8...
Bh5 {[%clk 0:02:55.6]} 9. Qe1 {[%clk 0:02:30.9]} 9... O-O {[%clk 0:02:55.7]} 10.
Nh4 {[%clk 0:02:31.2]} 10... Re8 {[%clk 0:02:48.6]} 11. Nf5 {[%clk 0:02:30.8]}
11... Bf8 {[%clk 0:02:48]} 12. g4 {[%clk 0:02:30.9]} 12... Bg6 {[%clk 0:02:48]}
13. Ng3 {[%clk 0:02:31.3]} 13... Nc5 {[%clk 0:02:42.6]} 14. Nb3 {[%clk
0:02:30.7]} 14... Ne6 {[%clk 0:02:40.9]} 15. Qe2 {[%clk 0:02:15.1]} 15... d4
{[%clk 0:02:30.6]} 16. h4 {[%clk 0:02:09.6]} 16... h6 {[%clk 0:02:24.4]} 17. h5
{[%clk 0:02:01.2]} 17... Bh7 {[%clk 0:02:23.6]} 18. Nf5 {[%clk 0:01:54.3]} 18...
c5 {[%clk 0:02:19.9]} 19. Nd2 {[%clk 0:01:50.7]} 19... Nf4 {[%clk 0:02:17.5]}
20. Qf3 {[%clk 0:01:50.5]} 20... Qc7 {[%clk 0:02:04.1]} 21. a4 {[%clk
0:01:46.9]} 21... Rad8 {[%clk 0:02:01.1]} 22. Nc4 {[%clk 0:01:46.5]} 22... b6
{[%clk 0:01:55.6]} 23. Bh1 {[%clk 0:01:38.2]} 23... Nd7 {[%clk 0:01:46.6]} 24.
Nxe5 {[%clk 0:01:30.9]} 24... Nxe5 {[%clk 0:01:27.7]} 25. Qxf4 {[%clk 0:01:30]}
25... g6 {[%clk 0:00:57]} 26. hxg6 {[%clk 0:01:18.8]} 26... fxg6 {[%clk
0:00:53.6]} 27. Nxh6+ {[%clk 0:01:10.6]} 27... Kh8 {[%clk 0:00:34.6]} 28. Qg3
{[%clk 0:00:55]} 28... Bg7 {[%clk 0:00:10.7]} 29. g5 {[%clk 0:00:50.3]} 29... c4
{[%clk 0:00:08]} 30. f4 {[%clk 0:00:45.2]} 30... Nf7 {[%clk 0:00:06.5]} 31.
Nxf7+ {[%clk 0:00:43.9]} 31... Qxf7 {[%clk 0:00:07.4]} 32. e5 {[%clk 0:00:41.2]}
32... Rc8 {[%clk 0:00:05.1]} 33. Bd2 {[%clk 0:00:27.9]} 33... Rf8 {[%clk
0:00:03.4]} 34. Be4 {[%clk 0:00:26.3]} 34... a5 {[%clk 0:00:03.5]} 35. Rf2
{[%clk 0:00:22.8]} 35... Kg8 {[%clk 0:00:03.8]} 36. Kg2 {[%clk 0:00:22.2]} 36...
Qe6 {[%clk 0:00:03]} 37. Rh1 {[%clk 0:00:17.4]} 37... Rc5 {[%clk 0:00:03.2]} 38.
Rh4 {[%clk 0:00:15.1]} 38... b5 {[%clk 0:00:02.2]} 39. axb5 {[%clk 0:00:14.8]}
39... Rxb5 {[%clk 0:00:02.8]} 40. dxc4 {[%clk 0:00:15.5]} 40... Rc5 {[%clk
0:00:02.1]} 41. Bd5 {[%clk 0:00:15.3]} 41... Rxd5 {[%clk 0:00:02.4]} 42. cxd5
{[%clk 0:00:16.2]} 42... Qxd5+ {[%clk 0:00:03.3]} 43. Qf3 {[%clk 0:00:16.7]}
43... Qe6 {[%clk 0:00:02.2]} 44. Qh3 {[%clk 0:00:15.2]} 44... Qd5+ {[%clk
0:00:02.6]} 45. Kg1 {[%clk 0:00:15.1]} 45... Rb8 {[%clk 0:00:01.5]} 46. Rxh7
{[%clk 0:00:14.4]} 46... Rxb2 {[%clk 0:00:01.5]} 47. Rxg7+ {[%clk 0:00:13.7]}
47... Kxg7 {[%clk 0:00:02.4]} 48. Qh6+ {[%clk 0:00:13.8]} 48... Kf7 {[%clk
0:00:02.5]} 49. Qh7+ {[%clk 0:00:14]} 49... Kf8 {[%clk 0:00:03.1]} 50. Qxg6
{[%clk 0:00:11.9]} 50... Rb1+ {[%clk 0:00:02.8]} 51. Rf1 {[%clk 0:00:12.3]}
51... Rxf1+ {[%clk 0:00:02.7]} 52. Kxf1 {[%clk 0:00:13.2]} 52... Qf3+ {[%clk
0:00:03.2]} 53. Ke1 {[%clk 0:00:13.4]} 53... Qh1+ {[%clk 0:00:02.6]} 54. Ke2
{[%clk 0:00:13.5]} 54... Qe4+ {[%clk 0:00:01.8]} 55. Kd1 {[%clk 0:00:12.2]}
55... Qxg6 {[%clk 0:00:02.6]} 0-1

[Event "*** Titled Tuesday Blitz"]
[Site "Chess.com"]
[Date "2020.05.05"]
[Round "4"]
[White "dbrankovic68"]
[Black "RobPeresian"]
[Result "1-0"]
[WhiteElo "2465"]
[BlackElo "2282"]
[TimeControl "180+1"]
[EndTime "10:41:46 PDT"]
[Termination "dbrankovic68 won on time"]

1. e4 {[%clk 0:03:00.9]} 1... c5 {[%clk 0:02:59.6]} 2. Nf3 {[%clk 0:03:00.9]}
2... d6 {[%clk 0:02:59.8]} 3. d4 {[%clk 0:02:59.4]} 3... cxd4 {[%clk 0:03:00.7]}
4. Nxd4 {[%clk 0:02:59.9]} 4... Nf6 {[%clk 0:03:01]} 5. Nc3 {[%clk 0:03:00.3]}
5... a6 {[%clk 0:03:01]} 6. Bc4 {[%clk 0:02:59.2]} 6... e6 {[%clk 0:03:00.9]} 7.
Bb3 {[%clk 0:02:59.7]} 7... Nbd7 {[%clk 0:03:00.8]} 8. O-O {[%clk 0:03:00.1]}
8... Nc5 {[%clk 0:03:00.8]} 9. Re1 {[%clk 0:02:59.2]} 9... b5 {[%clk 0:02:53]}
10. Nd5 {[%clk 0:02:48.3]} 10... Bb7 {[%clk 0:02:27]} 11. Bg5 {[%clk 0:01:58.4]}
11... Be7 {[%clk 0:02:23.6]} 12. Nxe7 {[%clk 0:01:57.9]} 12... Qxe7 {[%clk
0:02:23.4]} 13. f3 {[%clk 0:01:53.5]} 13... h6 {[%clk 0:02:16.1]} 14. Bh4 {[%clk
0:01:53.1]} 14... g5 {[%clk 0:02:13.4]} 15. Bf2 {[%clk 0:01:45.4]} 15... O-O
{[%clk 0:02:00.4]} 16. h3 {[%clk 0:01:42.9]} 16... Rac8 {[%clk 0:01:45.1]} 17.
Qd2 {[%clk 0:01:42.2]} 17... Nh5 {[%clk 0:01:41.8]} 18. Rad1 {[%clk 0:01:39]}
18... Rfd8 {[%clk 0:01:37.4]} 19. c3 {[%clk 0:01:36.5]} 19... Nf4 {[%clk
0:01:33.5]} 20. Bc2 {[%clk 0:01:34.4]} 20... Qf6 {[%clk 0:01:31.3]} 21. Be3
{[%clk 0:01:28.4]} 21... Ng6 {[%clk 0:01:01.5]} 22. Nb3 {[%clk 0:01:06.3]} 22...
Na4 {[%clk 0:00:58.7]} 23. Bb1 {[%clk 0:01:05.3]} 23... d5 {[%clk 0:00:52.6]}
24. e5 {[%clk 0:01:00.7]} 24... Qxe5 {[%clk 0:00:30.4]} 25. Bxg6 {[%clk
0:00:54.3]} 25... fxg6 {[%clk 0:00:30]} 26. Bb6 {[%clk 0:00:49.7]} 26... Qf6
{[%clk 0:00:25.6]} 27. Bxd8 {[%clk 0:00:49.3]} 27... Rxd8 {[%clk 0:00:26.5]} 28.
Qe2 {[%clk 0:00:37.7]} 28... Kf7 {[%clk 0:00:22.3]} 29. Nd4 {[%clk 0:00:33.5]}
29... Re8 {[%clk 0:00:22]} 30. Qd3 {[%clk 0:00:29.2]} 30... e5 {[%clk
0:00:20.6]} 31. Nb3 {[%clk 0:00:27.9]} 31... Nb6 {[%clk 0:00:20.1]} 32. Nc5
{[%clk 0:00:23.5]} 32... Bc8 {[%clk 0:00:18.4]} 33. b3 {[%clk 0:00:23]} 33...
Qd6 {[%clk 0:00:14.7]} 34. Qe3 {[%clk 0:00:20.4]} 34... Re7 {[%clk 0:00:12.7]}
35. Nd3 {[%clk 0:00:20.2]} 35... e4 {[%clk 0:00:10.5]} 36. fxe4 {[%clk
0:00:18.1]} 36... Rxe4 {[%clk 0:00:11.4]} 37. Qf3+ {[%clk 0:00:16.6]} 37... Kg7
{[%clk 0:00:10.5]} 38. Rxe4 {[%clk 0:00:15.6]} 38... dxe4 {[%clk 0:00:11.4]} 39.
Qxe4 {[%clk 0:00:15.8]} 39... Bf5 {[%clk 0:00:09.9]} 40. Qe5+ {[%clk 0:00:15.8]}
40... Qxe5 {[%clk 0:00:09.3]} 41. Nxe5 {[%clk 0:00:16.3]} 41... Kf6 {[%clk
0:00:09.6]} 42. Nf3 {[%clk 0:00:15]} 42... Nd7 {[%clk 0:00:08.6]} 43. Rd6+
{[%clk 0:00:14.4]} 43... Ke7 {[%clk 0:00:08.2]} 44. Rxa6 {[%clk 0:00:14.9]}
44... Be4 {[%clk 0:00:06.4]} 45. Ra7 {[%clk 0:00:15.1]} 45... Kd6 {[%clk
0:00:05.5]} 46. Nd4 {[%clk 0:00:14.5]} 46... b4 {[%clk 0:00:03.1]} 47. cxb4
{[%clk 0:00:13.7]} 47... Ne5 {[%clk 0:00:03.2]} 48. Ra6+ {[%clk 0:00:12.6]}
48... Kd5 {[%clk 0:00:03.1]} 49. Ne2 {[%clk 0:00:13]} 49... Bd3 {[%clk
0:00:02.2]} 50. Nc3+ {[%clk 0:00:12.1]} 50... Kd4 {[%clk 0:00:02.4]} 51. Re6
{[%clk 0:00:11.9]} 1-0

[Event "*** Titled Tuesday Blitz"]
[Site "Chess.com"]
[Date "2020.05.05"]
[Round "4"]
[White "ZCorrales"]
[Black "ecwinslow"]
[Result "0-1"]
[WhiteElo "2036"]
[BlackElo "2235"]
[TimeControl "180+1"]
[EndTime "10:41:46 PDT"]
[Termination "ecwinslow won by checkmate"]

1. e4 {[%clk 0:03:00.9]} 1... c5 {[%clk 0:02:58.9]} 2. d4 {[%clk 0:02:58.3]}
2... cxd4 {[%clk 0:02:58]} 3. c3 {[%clk 0:02:58.6]} 3... Nf6 {[%clk 0:02:58.2]}
4. e5 {[%clk 0:02:55.9]} 4... Nd5 {[%clk 0:02:57.7]} 5. cxd4 {[%clk 0:02:56.1]}
5... d6 {[%clk 0:02:56.2]} 6. Nf3 {[%clk 0:02:56.5]} 6... Nc6 {[%clk 0:02:54.7]}
7. Bc4 {[%clk 0:02:56.3]} 7... dxe5 {[%clk 0:02:54.6]} 8. dxe5 {[%clk
0:02:55.7]} 8... Ndb4 {[%clk 0:02:54.3]} 9. Qxd8+ {[%clk 0:02:52.5]} 9... Nxd8
{[%clk 0:02:52.2]} 10. Na3 {[%clk 0:02:51.1]} 10... a6 {[%clk 0:02:47.4]} 11.
O-O {[%clk 0:02:50.3]} 11... Bg4 {[%clk 0:02:40.6]} 12. Bd2 {[%clk 0:02:20.9]}
12... e6 {[%clk 0:02:34.4]} 13. Rfd1 {[%clk 0:02:10.4]} 13... Ndc6 {[%clk
0:02:17.5]} 14. Bc3 {[%clk 0:02:02.8]} 14... Be7 {[%clk 0:02:08.5]} 15. h3
{[%clk 0:01:55.3]} 15... Bxf3 {[%clk 0:02:04.9]} 16. gxf3 {[%clk 0:01:55.1]}
16... Rd8 {[%clk 0:02:03.5]} 17. Rxd8+ {[%clk 0:01:53.3]} 17... Bxd8 {[%clk
0:02:03.2]} 18. Rd1 {[%clk 0:01:52.3]} 18... Bc7 {[%clk 0:01:59.8]} 19. f4
{[%clk 0:01:51.8]} 19... Ke7 {[%clk 0:01:52.8]} 20. Kg2 {[%clk 0:01:43]} 20...
Rd8 {[%clk 0:01:50.6]} 21. Rxd8 {[%clk 0:01:42]} 21... Kxd8 {[%clk 0:01:48.6]}
22. Kf3 {[%clk 0:01:42.4]} 22... b5 {[%clk 0:01:35.6]} 23. Bb3 {[%clk
0:01:34.6]} 23... Bb6 {[%clk 0:01:26.7]} 24. f5 {[%clk 0:01:30.5]} 24... Kd7
{[%clk 0:01:14.4]} 25. fxe6+ {[%clk 0:01:15.5]} 25... fxe6 {[%clk 0:01:13.6]}
26. Kg3 {[%clk 0:01:13.3]} 26... Nd3 {[%clk 0:01:07.8]} 27. f4 {[%clk
0:01:12.4]} 27... g6 {[%clk 0:00:55.8]} 28. Nc2 {[%clk 0:01:07.6]} 28... a5
{[%clk 0:00:47]} 29. a4 {[%clk 0:01:05.6]} 29... b4 {[%clk 0:00:43.5]} 30. Bd2
{[%clk 0:01:04]} 30... Nc5 {[%clk 0:00:40.2]} 31. Be3 {[%clk 0:00:45.4]} 31...
Nxb3 {[%clk 0:00:19]} 32. Bxb6 {[%clk 0:00:44.9]} 32... Ne7 {[%clk 0:00:17.3]}
33. Nd4 {[%clk 0:00:42.4]} 33... Nd5 {[%clk 0:00:16.3]} 34. Nxb3 {[%clk
0:00:39.2]} 34... Nxb6 {[%clk 0:00:16.3]} 35. Nxa5 {[%clk 0:00:39.6]} 35... Nxa4
{[%clk 0:00:16.4]} 36. b3 {[%clk 0:00:37.8]} 36... Nc5 {[%clk 0:00:15.8]} 37. h4
{[%clk 0:00:36]} 37... Ne4+ {[%clk 0:00:14.9]} 38. Kg4 {[%clk 0:00:36]} 38... h6
{[%clk 0:00:14.1]} 39. h5 {[%clk 0:00:35.5]} 39... g5 {[%clk 0:00:13.8]} 40.
fxg5 {[%clk 0:00:35.2]} 40... Nxg5 {[%clk 0:00:13.8]} 41. Nc4 {[%clk 0:00:34.3]}
41... Nf7 {[%clk 0:00:13.3]} 42. Kf4 {[%clk 0:00:33.3]} 42... Kc6 {[%clk
0:00:13.2]} 43. Ne3 {[%clk 0:00:32.4]} 43... Kc5 {[%clk 0:00:13]} 44. Ke4 {[%clk
0:00:29.5]} 44... Ng5+ {[%clk 0:00:11.5]} 45. Kf4 {[%clk 0:00:29.1]} 45... Kd4
{[%clk 0:00:10.8]} 46. Ng4 {[%clk 0:00:27.9]} 46... Nf7 {[%clk 0:00:10.8]} 47.
Nf2 {[%clk 0:00:24.1]} 47... Nxe5 {[%clk 0:00:09.3]} 48. Nd1 {[%clk 0:00:22.5]}
48... Nd3+ {[%clk 0:00:09.2]} 49. Kf3 {[%clk 0:00:18.3]} 49... Nc5 {[%clk
0:00:09.6]} 50. Ne3 {[%clk 0:00:17.1]} 50... Nxb3 {[%clk 0:00:08.5]} 51. Ng4
{[%clk 0:00:17.6]} 51... Nd2+ {[%clk 0:00:06.4]} 52. Ke2 {[%clk 0:00:17.1]}
52... Kc3 {[%clk 0:00:06.6]} 53. Nxh6 {[%clk 0:00:16.4]} 53... b3 {[%clk
0:00:06.2]} 54. Nf7 {[%clk 0:00:14.5]} 54... b2 {[%clk 0:00:06.3]} 55. h6 {[%clk
0:00:14.3]} 55... b1=Q {[%clk 0:00:05.7]} 56. h7 {[%clk 0:00:14.6]} 56... Qe4+
{[%clk 0:00:05.6]} 57. Kf2 {[%clk 0:00:12.1]} 57... Qxh7 {[%clk 0:00:05.1]} 58.
Kg3 {[%clk 0:00:10.7]} 58... Qg6+ {[%clk 0:00:04.7]} 59. Kf4 {[%clk 0:00:10.3]}
59... Qxf7+ {[%clk 0:00:05.3]} 60. Ke5 {[%clk 0:00:10.6]} 60... Qe7 {[%clk
0:00:05.2]} 61. Kf4 {[%clk 0:00:10.2]} 61... Qf6+ {[%clk 0:00:05.4]} 62. Ke3
{[%clk 0:00:10.3]} 62... Kc4 {[%clk 0:00:04.8]} 63. Ke2 {[%clk 0:00:09]} 63...
Qf4 {[%clk 0:00:04.6]} 64. Kd1 {[%clk 0:00:08.4]} 64... Qf2 {[%clk 0:00:04.6]}
65. Kc2 {[%clk 0:00:08]} 65... Nb3+ {[%clk 0:00:04.5]} 66. Kb1 {[%clk
0:00:07.3]} 66... Nc5 {[%clk 0:00:04.6]} 67. Ka1 {[%clk 0:00:06.9]} 67... Kb3
{[%clk 0:00:04.9]} 68. Kb1 {[%clk 0:00:06.1]} 68... Qb2# {[%clk 0:00:05.6]} 0-1

[Event "*** Titled Tuesday Blitz"]
[Site "Chess.com"]
[Date "2020.05.05"]
[Round "4"]
[White "djano"]
[Black "ShadowJolteon"]
[Result "0-1"]
[WhiteElo "2428"]
[BlackElo "2261"]
[TimeControl "180+1"]
[EndTime "10:41:47 PDT"]
[Termination "ShadowJolteon won by resignation"]

1. d4 {[%clk 0:03:00.9]} 1... Nf6 {[%clk 0:02:59.5]} 2. Bf4 {[%clk 0:03:00.9]}
2... d5 {[%clk 0:02:59.1]} 3. e3 {[%clk 0:03:00.6]} 3... c5 {[%clk 0:02:58.9]}
4. c3 {[%clk 0:02:59.5]} 4... Nc6 {[%clk 0:02:59.1]} 5. Nd2 {[%clk 0:02:58.1]}
5... cxd4 {[%clk 0:02:51.5]} 6. cxd4 {[%clk 0:02:51.7]} 6... Bf5 {[%clk
0:02:48.8]} 7. Bb5 {[%clk 0:02:48.1]} 7... e6 {[%clk 0:02:41.9]} 8. Ngf3 {[%clk
0:02:47.4]} 8... a6 {[%clk 0:02:40.5]} 9. Bxc6+ {[%clk 0:02:46.6]} 9... bxc6
{[%clk 0:02:40.4]} 10. O-O {[%clk 0:02:42.1]} 10... Bd6 {[%clk 0:02:39]} 11. Qa4
{[%clk 0:02:40.2]} 11... Qd7 {[%clk 0:02:27.7]} 12. Bxd6 {[%clk 0:02:36.5]}
12... Qxd6 {[%clk 0:02:28.6]} 13. Ne5 {[%clk 0:02:36.2]} 13... Rb8 {[%clk
0:02:19.5]} 14. Nxc6 {[%clk 0:02:28.6]} 14... Rxb2 {[%clk 0:02:07.9]} 15. Ne5+
{[%clk 0:02:23.1]} 15... Ke7 {[%clk 0:02:04.3]} 16. Nb3 {[%clk 0:02:06.7]} 16...
Rc8 {[%clk 0:01:44.2]} 17. Rac1 {[%clk 0:01:56.8]} 17... Rbc2 {[%clk 0:01:34.6]}
18. Rxc2 {[%clk 0:01:51.2]} 18... Bxc2 {[%clk 0:01:33.4]} 19. Qa5 {[%clk
0:01:41.6]} 19... Bxb3 {[%clk 0:01:25.7]} 20. axb3 {[%clk 0:01:40.3]} 20... Rc2
{[%clk 0:01:25.4]} 21. f3 {[%clk 0:01:30.4]} 21... Nd7 {[%clk 0:00:52.1]} 22.
Nd3 {[%clk 0:01:30.1]} 22... Qc6 {[%clk 0:00:33.7]} 23. Ra1 {[%clk 0:01:05.5]}
23... Qc3 {[%clk 0:00:28.6]} 24. Qxc3 {[%clk 0:00:47.7]} 24... Rxc3 {[%clk
0:00:29.5]} 25. Nc5 {[%clk 0:00:43]} 25... Nxc5 {[%clk 0:00:24.1]} 26. dxc5
{[%clk 0:00:42.9]} 26... Rxc5 {[%clk 0:00:25]} 27. Rxa6 {[%clk 0:00:42.6]} 27...
Rc3 {[%clk 0:00:25.6]} 28. e4 {[%clk 0:00:39.9]} 28... dxe4 {[%clk 0:00:23.3]}
29. fxe4 {[%clk 0:00:40.3]} 29... Rxb3 {[%clk 0:00:19.1]} 30. Kf2 {[%clk
0:00:40.7]} 30... Kf6 {[%clk 0:00:17.6]} 31. Ra5 {[%clk 0:00:39.5]} 31... g5
{[%clk 0:00:15.2]} 32. h3 {[%clk 0:00:38.6]} 32... h5 {[%clk 0:00:15]} 33. Rc5
{[%clk 0:00:38.3]} 33... Kg6 {[%clk 0:00:14.8]} 34. Rc6 {[%clk 0:00:37.9]} 34...
Kf6 {[%clk 0:00:14.9]} 35. Rc5 {[%clk 0:00:38.1]} 35... Ra3 {[%clk 0:00:14.8]}
36. Rb5 {[%clk 0:00:37.6]} 36... g4 {[%clk 0:00:15.1]} 37. Rxh5 {[%clk
0:00:36.2]} 37... g3+ {[%clk 0:00:15.2]} 38. Ke2 {[%clk 0:00:34.8]} 38... Kg6
{[%clk 0:00:15.6]} 39. Rb5 {[%clk 0:00:32]} 39... f5 {[%clk 0:00:16]} 40. e5
{[%clk 0:00:30]} 40... Kg5 {[%clk 0:00:15.5]} 41. Rb6 {[%clk 0:00:28.2]} 41...
Kf4 {[%clk 0:00:15.5]} 42. Rxe6 {[%clk 0:00:27.3]} 42... Ra2+ {[%clk 0:00:15.8]}
43. Kd3 {[%clk 0:00:25.5]} 43... Rxg2 {[%clk 0:00:15]} 44. Re8 {[%clk
0:00:24.6]} 44... Rh2 {[%clk 0:00:15.1]} 45. e6 {[%clk 0:00:24.5]} 45... Rxh3
{[%clk 0:00:15.5]} 46. e7 {[%clk 0:00:24.3]} 46... Rh7 {[%clk 0:00:14.9]} 47.
Ke2 {[%clk 0:00:22.4]} 47... Rg7 {[%clk 0:00:11.6]} 48. Kf1 {[%clk 0:00:20.4]}
48... Ke4 {[%clk 0:00:10.1]} 49. Kg2 {[%clk 0:00:14.7]} 49... f4 {[%clk
0:00:10.4]} 50. Ra8 {[%clk 0:00:07.6]} 50... Rxe7 {[%clk 0:00:09.5]} 51. Ra4+
{[%clk 0:00:07.2]} 51... Kf5 {[%clk 0:00:09.7]} 52. Kf3 {[%clk 0:00:07.5]} 52...
Re3+ {[%clk 0:00:09.6]} 53. Kg2 {[%clk 0:00:07.9]} 53... Kg4 {[%clk 0:00:09.8]}
54. Ra8 {[%clk 0:00:07.5]} 54... Re2+ {[%clk 0:00:09.9]} 55. Kf1 {[%clk
0:00:07.6]} 55... Kf3 {[%clk 0:00:10]} 56. Rg8 {[%clk 0:00:06]} 56... g2+ {[%clk
0:00:09.1]} 57. Kg1 {[%clk 0:00:06.1]} 57... Re1+ {[%clk 0:00:08.4]} 0-1

[Event "*** Titled Tuesday Blitz"]
[Site "Chess.com"]
[Date "2020.05.05"]
[Round "4"]
[White "Unknown_IM"]
[Black "Durarbayli"]
[Result "0-1"]
[WhiteElo "2524"]
[BlackElo "2805"]
[TimeControl "180+1"]
[EndTime "10:41:49 PDT"]
[Termination "Durarbayli won on time"]

1. Nf3 {[%clk 0:03:00.9]} 1... c5 {[%clk 0:02:59.4]} 2. c4 {[%clk 0:03:00]} 2...
Nc6 {[%clk 0:02:58.3]} 3. d4 {[%clk 0:02:58.8]} 3... cxd4 {[%clk 0:02:57.8]} 4.
Nxd4 {[%clk 0:02:59.7]} 4... g6 {[%clk 0:02:57.4]} 5. e4 {[%clk 0:02:59]} 5...
Bg7 {[%clk 0:02:57.4]} 6. Be3 {[%clk 0:02:59.2]} 6... Qb6 {[%clk 0:02:52.7]} 7.
Nb5 {[%clk 0:02:13.5]} 7... Qa5+ {[%clk 0:02:50.1]} 8. N5c3 {[%clk 0:02:11.5]}
8... Nf6 {[%clk 0:02:43.4]} 9. Bd3 {[%clk 0:02:11.1]} 9... d6 {[%clk 0:02:40]}
10. O-O {[%clk 0:02:10.5]} 10... Ng4 {[%clk 0:02:14.3]} 11. Bf4 {[%clk
0:02:01.6]} 11... Be5 {[%clk 0:02:14.2]} 12. Qd2 {[%clk 0:01:53.4]} 12... Bxf4
{[%clk 0:01:54.1]} 13. Qxf4 {[%clk 0:01:54.3]} 13... Qe5 {[%clk 0:01:54.5]} 14.
Qxe5 {[%clk 0:01:51.5]} 14... Ngxe5 {[%clk 0:01:55.4]} 15. Be2 {[%clk
0:01:51.1]} 15... Nd4 {[%clk 0:01:54.2]} 16. Nd2 {[%clk 0:01:45.3]} 16... g5
{[%clk 0:01:42.1]} 17. b3 {[%clk 0:01:32.8]} 17... Bd7 {[%clk 0:01:23.2]} 18.
Rad1 {[%clk 0:01:27.6]} 18... Bc6 {[%clk 0:01:13]} 19. f3 {[%clk 0:01:23.2]}
19... h5 {[%clk 0:01:09.7]} 20. Ndb1 {[%clk 0:01:19.6]} 20... Ne6 {[%clk
0:01:01.8]} 21. Nd5 {[%clk 0:01:07.4]} 21... h4 {[%clk 0:00:49.6]} 22. Nbc3
{[%clk 0:01:02.1]} 22... Kd7 {[%clk 0:00:31.1]} 23. b4 {[%clk 0:00:41]} 23... b6
{[%clk 0:00:30.1]} 24. Rfe1 {[%clk 0:00:33.4]} 24... Rhc8 {[%clk 0:00:26.9]} 25.
Rc1 {[%clk 0:00:30.3]} 25... Nd4 {[%clk 0:00:24.5]} 26. Bf1 {[%clk 0:00:25.3]}
26... h3 {[%clk 0:00:24.5]} 27. Red1 {[%clk 0:00:16.5]} 27... hxg2 {[%clk
0:00:24.4]} 28. Rxd4 {[%clk 0:00:15.8]} 28... Nxf3+ {[%clk 0:00:20.6]} 29. Kxg2
{[%clk 0:00:13.7]} 29... Nxd4 {[%clk 0:00:21.5]} 30. Rd1 {[%clk 0:00:06.9]}
30... e5 {[%clk 0:00:18.7]} 31. Be2 {[%clk 0:00:06.6]} 31... Rh8 {[%clk
0:00:16.6]} 32. Bg4+ {[%clk 0:00:06.6]} 32... Kd8 {[%clk 0:00:14.7]} 33. Rf1
{[%clk 0:00:07.1]} 33... Rh7 {[%clk 0:00:05.2]} 34. Rf6 {[%clk 0:00:07.2]} 34...
Ne6 {[%clk 0:00:04.8]} 35. b5 {[%clk 0:00:06.8]} 35... Bxd5 {[%clk 0:00:04.6]}
36. Nxd5 {[%clk 0:00:07.7]} 36... Nf4+ {[%clk 0:00:04.4]} 37. Nxf4 {[%clk
0:00:07]} 37... gxf4 {[%clk 0:00:05.3]} 38. Rxd6+ {[%clk 0:00:07.9]} 38... Ke7
{[%clk 0:00:05.8]} 39. Rd7+ {[%clk 0:00:07.9]} 39... Kf6 {[%clk 0:00:05.8]} 40.
Rd6+ {[%clk 0:00:08.4]} 40... Kg5 {[%clk 0:00:05.7]} 41. h3 {[%clk 0:00:08.9]}
41... Rhh8 {[%clk 0:00:05.1]} 42. Rd5 {[%clk 0:00:09.1]} 42... Kf6 {[%clk
0:00:05.2]} 43. Rd6+ {[%clk 0:00:09.2]} 43... Kg7 {[%clk 0:00:05.7]} 44. Rd5
{[%clk 0:00:09.1]} 44... Rhe8 {[%clk 0:00:06.2]} 45. Rd7 {[%clk 0:00:09.2]}
45... Red8 {[%clk 0:00:04.2]} 46. Rc7 {[%clk 0:00:09.2]} 46... Rd2+ {[%clk
0:00:05]} 47. Kf3 {[%clk 0:00:09.6]} 47... Rxa2 {[%clk 0:00:05.2]} 48. Be6
{[%clk 0:00:08.8]} 48... Ra3+ {[%clk 0:00:05.4]} 49. Kg4 {[%clk 0:00:09.2]}
49... Kg6 {[%clk 0:00:04.8]} 50. Bxf7+ {[%clk 0:00:08.9]} 50... Kf6 {[%clk
0:00:04.8]} 51. Bd5 {[%clk 0:00:08.6]} 51... Rg3+ {[%clk 0:00:05.7]} 52. Kh5
{[%clk 0:00:06.2]} 52... Rh8+ {[%clk 0:00:06.6]} 0-1